[Event "*** Titled Tuesday Blitz"]
[Site "Chess.com"]
[Date "2020.04.28"]
[Round "2"]
[White "ama18"]
[Black "RovenVogel"]
[Result "0-1"]
[WhiteElo "2479"]
[BlackElo "2711"]
[TimeControl "180+1"]
[EndTime "10:18:54 PDT"]
[Termination "RovenVogel won by resignation"]

1. e4 {[%clk 0:03:00.9]} 1... c5 {[%clk 0:02:58.2]} 2. Nf3 {[%clk 0:03:00.9]}
2... d6 {[%clk 0:02:57.8]} 3. d4 {[%clk 0:03:01.4]} 3... cxd4 {[%clk 0:02:57.4]}
4. Nxd4 {[%clk 0:03:02.3]} 4... Nf6 {[%clk 0:02:58]} 5. Nc3 {[%clk 0:03:02.9]}
5... Nc6 {[%clk 0:02:58.3]} 6. Bg5 {[%clk 0:03:01.6]} 6... e6 {[%clk 0:02:57.1]}
7. Qd2 {[%clk 0:03:02.1]} 7... a6 {[%clk 0:02:52.1]} 8. Nxc6 {[%clk 0:03:01.3]}
8... bxc6 {[%clk 0:02:51.7]} 9. O-O-O {[%clk 0:03:01.5]} 9... Be7 {[%clk
0:02:45.7]} 10. Bxf6 {[%clk 0:03:01.1]} 10... gxf6 {[%clk 0:02:43.3]} 11. Bc4
{[%clk 0:03:01.1]} 11... Qb6 {[%clk 0:02:34.7]} 12. Bb3 {[%clk 0:02:48.6]} 12...
Bb7 {[%clk 0:02:33.1]} 13. Rhe1 {[%clk 0:02:38.1]} 13... O-O-O {[%clk
0:02:31.8]} 14. Kb1 {[%clk 0:02:37.9]} 14... Kb8 {[%clk 0:02:29.2]} 15. f4
{[%clk 0:02:37.8]} 15... d5 {[%clk 0:02:24]} 16. f5 {[%clk 0:01:36.8]} 16... Bb4
{[%clk 0:02:22.7]} 17. fxe6 {[%clk 0:00:54.5]} 17... d4 {[%clk 0:01:42.6]} 18.
Qf4+ {[%clk 0:00:52.5]} 18... Bd6 {[%clk 0:01:38.1]} 19. Qxf6 {[%clk 0:00:52.1]}
19... fxe6 {[%clk 0:01:31.9]} 20. Rxd4 {[%clk 0:00:28.6]} 20... Rhf8 {[%clk
0:01:25]} 21. Qg7 {[%clk 0:00:25.9]} 21... Rg8 {[%clk 0:01:20.6]} 22. Qf6 {[%clk
0:00:20.6]} 22... Rdf8 {[%clk 0:01:18.1]} 23. Na4 {[%clk 0:00:17.9]} 23... Qa7
{[%clk 0:01:11.3]} 24. Qxe6 {[%clk 0:00:04.8]} 24... Qxd4 {[%clk 0:01:10.9]} 25.
c3 {[%clk 0:00:05.1]} 25... Qe5 {[%clk 0:00:43.1]} 26. Qxe5 {[%clk 0:00:05]}
26... Bxe5 {[%clk 0:00:44]} 27. Bxg8 {[%clk 0:00:05.6]} 27... Rxg8 {[%clk
0:00:44.9]} 28. g3 {[%clk 0:00:06.3]} 28... Rf8 {[%clk 0:00:40.9]} 29. Nc5
{[%clk 0:00:06.3]} 29... Bc8 {[%clk 0:00:40.4]} 30. Re2 {[%clk 0:00:05]} 30...
a5 {[%clk 0:00:32.2]} 31. Kc2 {[%clk 0:00:04.9]} 31... Kc7 {[%clk 0:00:30.6]}
32. b4 {[%clk 0:00:05]} 32... Bd6 {[%clk 0:00:26.2]} 33. Nd3 {[%clk 0:00:04]}
33... Ba6 {[%clk 0:00:25.9]} 34. Rd2 {[%clk 0:00:03.8]} 34... Bxd3+ {[%clk
0:00:23.8]} 35. Rxd3 {[%clk 0:00:04.7]} 35... axb4 {[%clk 0:00:24.7]} 36. cxb4
{[%clk 0:00:05.2]} 36... Bxb4 {[%clk 0:00:22.9]} 37. Kb3 {[%clk 0:00:05.3]}
37... Bd6 {[%clk 0:00:22.2]} 38. a3 {[%clk 0:00:05.6]} 38... Rf2 {[%clk
0:00:21.7]} 39. h4 {[%clk 0:00:05.2]} 39... Rg2 {[%clk 0:00:21.8]} 40. Rf3
{[%clk 0:00:04.2]} 40... Rxg3 {[%clk 0:00:21.3]} 41. Rxg3 {[%clk 0:00:04.4]}
41... Bxg3 {[%clk 0:00:22.2]} 42. h5 {[%clk 0:00:05.3]} 42... Kd6 {[%clk
0:00:22.4]} 43. Kc4 {[%clk 0:00:06.2]} 43... Be1 {[%clk 0:00:21.9]} 44. a4
{[%clk 0:00:04.3]} 44... Ba5 {[%clk 0:00:19.9]} 45. Kd4 {[%clk 0:00:03.9]} 45...
Bb6+ {[%clk 0:00:19.4]} 46. Kd3 {[%clk 0:00:03.3]} 46... Ke5 {[%clk 0:00:20.3]}
47. h6 {[%clk 0:00:03.4]} 47... Ba5 {[%clk 0:00:18.9]} 48. Ke3 {[%clk
0:00:03.3]} 48... Bc7 {[%clk 0:00:18.8]} 49. Kf3 {[%clk 0:00:03.5]} 49... Bb6
{[%clk 0:00:19]} 50. Kg4 {[%clk 0:00:03.8]} 50... Kxe4 {[%clk 0:00:19.2]} 51.
Kg5 {[%clk 0:00:04.6]} 51... Ke5 {[%clk 0:00:19.4]} 52. Kg4 {[%clk 0:00:04.6]}
52... Kf6 {[%clk 0:00:19.3]} 53. Kf4 {[%clk 0:00:04.6]} 53... Kg6 {[%clk
0:00:18.4]} 0-1

[Event "*** Titled Tuesday Blitz"]
[Site "Chess.com"]
[Date "2020.04.28"]
[Round "2"]
[White "MartinCerveny"]
[Black "Akhayan"]
[Result "1-0"]
[WhiteElo "2609"]
[BlackElo "2293"]
[TimeControl "180+1"]
[EndTime "10:18:56 PDT"]
[Termination "MartinCerveny won by resignation"]

1. d4 {[%clk 0:03:00.9]} 1... e6 {[%clk 0:02:58.4]} 2. c4 {[%clk 0:03:00.9]}
2... d5 {[%clk 0:02:58]} 3. Nc3 {[%clk 0:03:00.2]} 3... Nf6 {[%clk 0:02:57.8]}
4. cxd5 {[%clk 0:02:59.7]} 4... exd5 {[%clk 0:02:57.1]} 5. Bg5 {[%clk
0:03:00.2]} 5... c6 {[%clk 0:02:56.2]} 6. e3 {[%clk 0:03:00.3]} 6... Be7 {[%clk
0:02:54.1]} 7. Bd3 {[%clk 0:02:59.8]} 7... O-O {[%clk 0:02:53]} 8. Qc2 {[%clk
0:02:59.4]} 8... Nbd7 {[%clk 0:02:51.8]} 9. Nge2 {[%clk 0:02:58.9]} 9... Re8
{[%clk 0:02:51.6]} 10. O-O {[%clk 0:02:58.9]} 10... Nf8 {[%clk 0:02:51.7]} 11.
f3 {[%clk 0:02:58.8]} 11... Ng6 {[%clk 0:02:51.2]} 12. e4 {[%clk 0:02:58.2]}
12... dxe4 {[%clk 0:02:28]} 13. fxe4 {[%clk 0:02:59.1]} 13... Bg4 {[%clk
0:02:26.4]} 14. Bxf6 {[%clk 0:02:35.8]} 14... Bxf6 {[%clk 0:02:23.5]} 15. e5
{[%clk 0:02:35.7]} 15... Bg5 {[%clk 0:02:17.6]} 16. Kh1 {[%clk 0:02:34.8]} 16...
Be6 {[%clk 0:02:01]} 17. Ne4 {[%clk 0:02:32.4]} 17... Bd5 {[%clk 0:01:57.9]} 18.
N2g3 {[%clk 0:02:25.6]} 18... Nf4 {[%clk 0:01:46.7]} 19. Nxg5 {[%clk 0:01:59.3]}
19... Qxg5 {[%clk 0:01:45.2]} 20. Be4 {[%clk 0:01:50.9]} 20... Bxe4 {[%clk
0:01:28]} 21. Qxe4 {[%clk 0:01:51.8]} 21... Ne6 {[%clk 0:01:24.5]} 22. Rf5
{[%clk 0:01:49.8]} 22... Qg6 {[%clk 0:01:24]} 23. Raf1 {[%clk 0:01:49.4]} 23...
Re7 {[%clk 0:01:21.5]} 24. Ne2 {[%clk 0:01:44.6]} 24... Rd8 {[%clk 0:01:18.6]}
25. h4 {[%clk 0:01:38.6]} 25... h6 {[%clk 0:01:14.1]} 26. h5 {[%clk 0:01:37.5]}
26... Qh7 {[%clk 0:01:12.6]} 27. Qg4 {[%clk 0:01:31.1]} 27... Red7 {[%clk
0:01:07.8]} 28. Qf3 {[%clk 0:01:07.5]} 28... Ng5 {[%clk 0:01:00]} 29. Qb3 {[%clk
0:01:03.3]} 29... c5 {[%clk 0:00:46.7]} 30. dxc5 {[%clk 0:00:56.8]} 30... Ne6
{[%clk 0:00:42.4]} 31. Rxf7 {[%clk 0:00:51.9]} 31... Rxf7 {[%clk 0:00:40.8]} 32.
Qxe6 {[%clk 0:00:51.6]} 32... Rf8 {[%clk 0:00:37.7]} 33. Ng3 {[%clk 0:00:41.5]}
33... Qd3 {[%clk 0:00:36.8]} 34. Kh2 {[%clk 0:00:40.3]} 34... Qd4 {[%clk
0:00:27.3]} 35. Rf3 {[%clk 0:00:33.4]} 35... Qh4+ {[%clk 0:00:26.4]} 36. Kg1
{[%clk 0:00:32.7]} 36... Qd4+ {[%clk 0:00:26]} 37. Kf1 {[%clk 0:00:29.6]} 37...
Qd1+ {[%clk 0:00:25.4]} 38. Kf2 {[%clk 0:00:29.5]} 38... Qd4+ {[%clk 0:00:25]}
39. Ke2 {[%clk 0:00:29]} 39... Qxb2+ {[%clk 0:00:24.2]} 40. Kf1 {[%clk
0:00:29.1]} 40... Qb1+ {[%clk 0:00:23.4]} 41. Kf2 {[%clk 0:00:28.3]} 41... Qb2+
{[%clk 0:00:23.3]} 42. Ne2 {[%clk 0:00:28.2]} 42... Qb5 {[%clk 0:00:18.9]} 43.
Qd5 {[%clk 0:00:25.1]} 43... Qc6 {[%clk 0:00:17.6]} 44. Qc4 {[%clk 0:00:23.1]}
44... b5 {[%clk 0:00:16.6]} 45. Qd4 {[%clk 0:00:14.7]} 45... b4 {[%clk
0:00:16.6]} 46. Nf4 {[%clk 0:00:13.5]} 46... Rxf4 {[%clk 0:00:16.2]} 47. Rxf4
{[%clk 0:00:13.3]} 47... Rxf4+ {[%clk 0:00:16.1]} 48. Qxf4 {[%clk 0:00:14.2]}
48... Qxc5+ {[%clk 0:00:16.5]} 49. Kg3 {[%clk 0:00:15.1]} 49... Qe7 {[%clk
0:00:16.4]} 50. Qf5 {[%clk 0:00:14.6]} 50... Qg5+ {[%clk 0:00:16.4]} 51. Qxg5
{[%clk 0:00:14.7]} 51... hxg5 {[%clk 0:00:17]} 52. Kf3 {[%clk 0:00:15.6]} 52...
a5 {[%clk 0:00:17]} 53. Ke3 {[%clk 0:00:15.9]} 53... a4 {[%clk 0:00:17.5]} 54.
Kd3 {[%clk 0:00:16.2]} 54... b3 {[%clk 0:00:18]} 55. axb3 {[%clk 0:00:16.2]}
55... a3 {[%clk 0:00:18.5]} 56. Kc3 {[%clk 0:00:16.1]} 56... Kf7 {[%clk
0:00:19]} 57. b4 {[%clk 0:00:16.3]} 57... Ke6 {[%clk 0:00:19.4]} 58. Kb3 {[%clk
0:00:16.4]} 58... Kxe5 {[%clk 0:00:19.6]} 59. Kxa3 {[%clk 0:00:16.5]} 59... Kf4
{[%clk 0:00:20]} 60. b5 {[%clk 0:00:16.6]} 60... Kg3 {[%clk 0:00:20.5]} 61. b6
{[%clk 0:00:17.1]} 61... Kxg2 {[%clk 0:00:20.8]} 62. b7 {[%clk 0:00:18]} 62...
g4 {[%clk 0:00:21.4]} 63. b8=Q {[%clk 0:00:18.1]} 63... g3 {[%clk 0:00:22.3]}
64. Qg8 {[%clk 0:00:18.2]} 64... Kh2 {[%clk 0:00:23.2]} 65. Qxg7 {[%clk
0:00:18.5]} 65... g2 {[%clk 0:00:23.1]} 66. h6 {[%clk 0:00:18.8]} 66... g1=Q
{[%clk 0:00:23.3]} 67. Qxg1+ {[%clk 0:00:18.6]} 67... Kxg1 {[%clk 0:00:23.8]}
68. h7 {[%clk 0:00:19.5]} 68... Kf1 {[%clk 0:00:24.3]} 69. h8=Q {[%clk
0:00:19.7]} 69... Ke1 {[%clk 0:00:24.8]} 70. Qb2 {[%clk 0:00:18.9]} 70... Kd1
{[%clk 0:00:25.7]} 71. Kb3 {[%clk 0:00:19.8]} 1-0

[Event "*** Titled Tuesday Blitz"]
[Site "Chess.com"]
[Date "2020.04.28"]
[Round "2"]
[White "APotatoInthekitchen"]
[Black "tomsishere"]
[Result "0-1"]
[WhiteElo "2158"]
[BlackElo "2425"]
[TimeControl "180+1"]
[EndTime "10:18:56 PDT"]
[Termination "tomsishere won by checkmate"]

1. e4 {[%clk 0:02:59.5]} 1... c6 {[%clk 0:02:59.4]} 2. Nf3 {[%clk 0:02:59.2]}
2... d5 {[%clk 0:02:59]} 3. Nc3 {[%clk 0:02:59.4]} 3... Nf6 {[%clk 0:02:56.6]}
4. e5 {[%clk 0:02:56.2]} 4... Ne4 {[%clk 0:02:56.2]} 5. Bd3 {[%clk 0:02:56.1]}
5... Nc5 {[%clk 0:02:44.5]} 6. Be2 {[%clk 0:02:48.7]} 6... d4 {[%clk 0:02:41.9]}
7. b4 {[%clk 0:02:47.6]} 7... dxc3 {[%clk 0:02:36.4]} 8. bxc5 {[%clk 0:02:46.7]}
8... Bg4 {[%clk 0:02:28.5]} 9. d4 {[%clk 0:02:38]} 9... e6 {[%clk 0:02:16.7]}
10. O-O {[%clk 0:02:26.4]} 10... b6 {[%clk 0:02:15.7]} 11. cxb6 {[%clk
0:02:14.3]} 11... axb6 {[%clk 0:02:16.1]} 12. Bg5 {[%clk 0:02:05.5]} 12... Qc7
{[%clk 0:02:06.7]} 13. Qd3 {[%clk 0:02:01.6]} 13... Ra3 {[%clk 0:01:59]} 14. Bc1
{[%clk 0:01:31]} 14... Bf5 {[%clk 0:01:44.7]} 15. Qe3 {[%clk 0:01:30]} 15... Ra4
{[%clk 0:01:19.6]} 16. Qxc3 {[%clk 0:01:27.1]} 16... Be7 {[%clk 0:01:15.4]} 17.
Bb5 {[%clk 0:01:19.3]} 17... Ra5 {[%clk 0:01:11.8]} 18. Bd3 {[%clk 0:01:18.6]}
18... Bxd3 {[%clk 0:01:02]} 19. Qxd3 {[%clk 0:01:18.5]} 19... O-O {[%clk
0:01:02.4]} 20. Bb2 {[%clk 0:01:14.5]} 20... Rd8 {[%clk 0:01:01.5]} 21. c4
{[%clk 0:01:06.4]} 21... Qa7 {[%clk 0:00:59.1]} 22. a3 {[%clk 0:01:04.2]} 22...
Nd7 {[%clk 0:00:55.7]} 23. Rfe1 {[%clk 0:01:02.2]} 23... Nc5 {[%clk 0:00:53.1]}
24. Qc2 {[%clk 0:00:53]} 24... Na4 {[%clk 0:00:51.6]} 25. Bc1 {[%clk 0:00:53.3]}
25... Qd7 {[%clk 0:00:42.6]} 26. Bd2 {[%clk 0:00:48.7]} 26... Raa8 {[%clk
0:00:42.2]} 27. Ng5 {[%clk 0:00:32.7]} 27... Bxg5 {[%clk 0:00:39.7]} 28. Bxg5
{[%clk 0:00:32.1]} 28... Rdc8 {[%clk 0:00:30.6]} 29. Rad1 {[%clk 0:00:30.9]}
29... h6 {[%clk 0:00:29.7]} 30. Be3 {[%clk 0:00:30.7]} 30... b5 {[%clk
0:00:29.3]} 31. cxb5 {[%clk 0:00:26.1]} 31... cxb5 {[%clk 0:00:29]} 32. Qb3
{[%clk 0:00:25.5]} 32... Rc3 {[%clk 0:00:25.4]} 33. Qb4 {[%clk 0:00:25.6]} 33...
Rc4 {[%clk 0:00:25.2]} 34. Qb3 {[%clk 0:00:25.3]} 34... Nc3 {[%clk 0:00:20.6]}
35. Rd3 {[%clk 0:00:20.7]} 35... Rac8 {[%clk 0:00:19.2]} 36. h3 {[%clk
0:00:19.6]} 36... Qd5 {[%clk 0:00:18.2]} 37. Kh2 {[%clk 0:00:18.6]} 37... Qc6
{[%clk 0:00:14.9]} 38. Rc1 {[%clk 0:00:17.6]} 38... Nd5 {[%clk 0:00:14.9]} 39.
Rxc4 {[%clk 0:00:17.7]} 39... bxc4 {[%clk 0:00:14.9]} 40. Qd1 {[%clk 0:00:13.6]}
40... cxd3 {[%clk 0:00:14.8]} 41. Qxd3 {[%clk 0:00:14.5]} 41... Nxe3 {[%clk
0:00:14.6]} 42. Qxe3 {[%clk 0:00:14.5]} 42... Qd5 {[%clk 0:00:13.6]} 43. Qd3
{[%clk 0:00:14.7]} 43... Ra8 {[%clk 0:00:13.7]} 44. f4 {[%clk 0:00:13.2]} 44...
Ra4 {[%clk 0:00:13.5]} 45. f5 {[%clk 0:00:13.4]} 45... Qxd4 {[%clk 0:00:10.7]}
46. Qg3 {[%clk 0:00:13.2]} 46... Qf4 {[%clk 0:00:10.3]} 47. f6 {[%clk
0:00:12.5]} 47... Qxg3+ {[%clk 0:00:10.2]} 48. Kxg3 {[%clk 0:00:13.4]} 48...
gxf6 {[%clk 0:00:10.8]} 49. exf6 {[%clk 0:00:13.6]} 49... Rxa3+ {[%clk
0:00:11.7]} 50. Kg4 {[%clk 0:00:13.8]} 50... Kh7 {[%clk 0:00:12.6]} 51. h4
{[%clk 0:00:14.1]} 51... Ra4+ {[%clk 0:00:12.2]} 52. Kh3 {[%clk 0:00:14.1]}
52... Ra5 {[%clk 0:00:12.5]} 53. g3 {[%clk 0:00:14.6]} 53... h5 {[%clk
0:00:12.9]} 54. g4 {[%clk 0:00:14.8]} 54... Kg6 {[%clk 0:00:13.8]} 55. g5 {[%clk
0:00:15]} 55... e5 {[%clk 0:00:13.9]} 56. Kg2 {[%clk 0:00:15.3]} 56... Ra3
{[%clk 0:00:14.7]} 57. Kf2 {[%clk 0:00:15.5]} 57... Kf5 {[%clk 0:00:14.9]} 58.
Ke2 {[%clk 0:00:15.7]} 58... e4 {[%clk 0:00:15]} 59. Kd2 {[%clk 0:00:15.9]}
59... Kf4 {[%clk 0:00:15.1]} 60. Ke2 {[%clk 0:00:15.2]} 60... Rg3 {[%clk
0:00:15.4]} 61. Kf2 {[%clk 0:00:14.5]} 61... e3+ {[%clk 0:00:15.7]} 62. Ke2
{[%clk 0:00:14.9]} 62... Rg2+ {[%clk 0:00:15.8]} 63. Ke1 {[%clk 0:00:15]} 63...
Kf3 {[%clk 0:00:15.5]} 64. Kd1 {[%clk 0:00:14.7]} 64... e2+ {[%clk 0:00:15.9]}
65. Kd2 {[%clk 0:00:15.4]} 65... Rg1 {[%clk 0:00:15.6]} 66. Kc3 {[%clk
0:00:16.3]} 66... e1=Q+ {[%clk 0:00:15.7]} 67. Kd4 {[%clk 0:00:15.8]} 67... Qe4+
{[%clk 0:00:15.6]} 68. Kc5 {[%clk 0:00:15.6]} 68... Rc1+ {[%clk 0:00:16.1]} 69.
Kb6 {[%clk 0:00:16.5]} 69... Qc6+ {[%clk 0:00:16]} 70. Ka7 {[%clk 0:00:17.4]}
70... Ra1+ {[%clk 0:00:15.9]} 71. Kb8 {[%clk 0:00:18.3]} 71... Ra8# {[%clk
0:00:16.3]} 0-1

[Event "*** Titled Tuesday Blitz"]
[Site "Chess.com"]
[Date "2020.04.28"]
[Round "2"]
[White "djogrodek1"]
[Black "Alexander_Donchenko"]
[Result "1-0"]
[WhiteElo "2586"]
[BlackElo "2866"]
[TimeControl "180+1"]
[EndTime "10:18:57 PDT"]
[Termination "djogrodek1 won on time"]

1. Nf3 {[%clk 0:02:59.9]} 1... Nf6 {[%clk 0:02:59.4]} 2. c4 {[%clk 0:03:00]}
2... e6 {[%clk 0:02:59.2]} 3. g3 {[%clk 0:02:54.3]} 3... a6 {[%clk 0:02:59.2]}
4. Bg2 {[%clk 0:02:52.8]} 4... b5 {[%clk 0:02:59.5]} 5. O-O {[%clk 0:02:52.1]}
5... Bb7 {[%clk 0:02:57.5]} 6. b3 {[%clk 0:02:52.2]} 6... c5 {[%clk 0:02:57.4]}
7. Bb2 {[%clk 0:02:51.7]} 7... Be7 {[%clk 0:02:56.9]} 8. d3 {[%clk 0:02:50]}
8... O-O {[%clk 0:02:56.5]} 9. Nbd2 {[%clk 0:02:49.1]} 9... d5 {[%clk
0:02:56.2]} 10. Ne5 {[%clk 0:02:45]} 10... Nbd7 {[%clk 0:02:54.9]} 11. Qc2
{[%clk 0:02:36.6]} 11... Rc8 {[%clk 0:02:50.5]} 12. Rac1 {[%clk 0:02:34.5]}
12... Nxe5 {[%clk 0:02:43.7]} 13. Bxe5 {[%clk 0:02:33.7]} 13... Qd7 {[%clk
0:02:44.4]} 14. Bb2 {[%clk 0:02:29.5]} 14... Rfd8 {[%clk 0:02:43.3]} 15. Nf3
{[%clk 0:02:27.7]} 15... Qc7 {[%clk 0:02:33.6]} 16. Rfd1 {[%clk 0:02:26.4]}
16... h6 {[%clk 0:02:30.5]} 17. Qb1 {[%clk 0:02:26.2]} 17... Qb8 {[%clk
0:02:26.8]} 18. Ne5 {[%clk 0:02:23.4]} 18... d4 {[%clk 0:02:11.1]} 19. Bxb7
{[%clk 0:02:19.6]} 19... Qxb7 {[%clk 0:02:12]} 20. cxb5 {[%clk 0:02:08.6]} 20...
axb5 {[%clk 0:02:09]} 21. a4 {[%clk 0:02:08.3]} 21... Bd6 {[%clk 0:01:53.8]} 22.
Nf3 {[%clk 0:02:01.4]} 22... Rb8 {[%clk 0:01:25.5]} 23. axb5 {[%clk 0:01:54.8]}
23... Qxb5 {[%clk 0:01:25.2]} 24. Nd2 {[%clk 0:01:55.2]} 24... Nd5 {[%clk
0:01:23.4]} 25. Rc4 {[%clk 0:01:49.1]} 25... h5 {[%clk 0:01:18]} 26. Rdc1 {[%clk
0:01:45.7]} 26... h4 {[%clk 0:01:17.9]} 27. Ba3 {[%clk 0:01:44.7]} 27... Nc3
{[%clk 0:01:15]} 28. R1xc3 {[%clk 0:01:44]} 28... dxc3 {[%clk 0:01:15.9]} 29.
Rxc3 {[%clk 0:01:44.9]} 29... hxg3 {[%clk 0:01:09.1]} 30. hxg3 {[%clk
0:01:44.3]} 30... Bf8 {[%clk 0:00:38.2]} 31. Rc4 {[%clk 0:01:39.2]} 31... Qa5
{[%clk 0:00:35.2]} 32. Qc1 {[%clk 0:01:35.5]} 32... Ra8 {[%clk 0:00:35.1]} 33.
Bb2 {[%clk 0:01:35.5]} 33... Rd5 {[%clk 0:00:32.5]} 34. Rg4 {[%clk 0:01:26.3]}
34... Rf5 {[%clk 0:00:13.8]} 35. Nc4 {[%clk 0:01:19]} 35... Qb5 {[%clk
0:00:12.6]} 36. Bxg7 {[%clk 0:01:15.4]} 36... Bxg7 {[%clk 0:00:09.6]} 37. Qh6
{[%clk 0:01:15]} 37... Ra1+ {[%clk 0:00:03.2]} 38. Kh2 {[%clk 0:01:15.1]} 38...
Rh5+ {[%clk 0:00:03.3]} 39. Qxh5 {[%clk 0:01:13.2]} 39... Qb7 {[%clk 0:00:03.9]}
40. f3 {[%clk 0:01:02.8]} 40... f5 {[%clk 0:00:03.7]} 41. Qe8+ {[%clk
0:00:58.3]} 41... Kh7 {[%clk 0:00:03.4]} 42. Rh4+ {[%clk 0:00:58]} 42... Bh6
{[%clk 0:00:04.1]} 43. Qxe6 {[%clk 0:00:56.6]} 43... Qg7 {[%clk 0:00:03.7]} 44.
Qxf5+ {[%clk 0:00:56.1]} 44... Qg6 {[%clk 0:00:04.2]} 45. Qxg6+ {[%clk
0:00:53.1]} 45... Kxg6 {[%clk 0:00:05.1]} 46. Re4 {[%clk 0:00:52.2]} 46... Kg7
{[%clk 0:00:05]} 47. g4 {[%clk 0:00:51.9]} 47... Bg5 {[%clk 0:00:04.4]} 48. f4
{[%clk 0:00:50.9]} 48... Bd8 {[%clk 0:00:03.5]} 49. Kg3 {[%clk 0:00:50.4]} 49...
Rg1+ {[%clk 0:00:03]} 50. Kf3 {[%clk 0:00:50.3]} 50... Rf1+ {[%clk 0:00:03.1]}
51. Kg2 {[%clk 0:00:50.3]} 51... Rb1 {[%clk 0:00:03.6]} 52. g5 {[%clk
0:00:50.5]} 52... Rxb3 {[%clk 0:00:03.6]} 53. Kf3 {[%clk 0:00:49.3]} 53... Rb1
{[%clk 0:00:03.7]} 54. Re5 {[%clk 0:00:49]} 54... Kg6 {[%clk 0:00:02.1]} 55.
Rxc5 {[%clk 0:00:47]} 55... Rf1+ {[%clk 0:00:02.7]} 56. Ke4 {[%clk 0:00:46.5]}
56... Be7 {[%clk 0:00:02]} 57. Rc6+ {[%clk 0:00:46.8]} 57... Kf7 {[%clk
0:00:02.4]} 58. Ne5+ {[%clk 0:00:46.8]} 58... Kf8 {[%clk 0:00:02.3]} 59. Ng6+
{[%clk 0:00:46.3]} 59... Kf7 {[%clk 0:00:03]} 60. Nxe7 {[%clk 0:00:46.2]} 60...
Kxe7 {[%clk 0:00:03.9]} 61. e3 {[%clk 0:00:46.5]} 61... Rg1 {[%clk 0:00:03.8]}
62. Rf6 {[%clk 0:00:47.3]} 62... Kd7 {[%clk 0:00:03.5]} 63. d4 {[%clk
0:00:47.9]} 63... Ke7 {[%clk 0:00:04]} 64. d5 {[%clk 0:00:48.3]} 64... Ke8
{[%clk 0:00:04.5]} 65. Ke5 {[%clk 0:00:48.7]} 65... Rd1 {[%clk 0:00:05]} 66. e4
{[%clk 0:00:49.1]} 66... Re1 {[%clk 0:00:05.6]} 67. f5 {[%clk 0:00:47.5]} 67...
Kd7 {[%clk 0:00:06]} 68. g6 {[%clk 0:00:47.9]} 68... Ke7 {[%clk 0:00:06.5]} 69.
Ra6 {[%clk 0:00:48]} 69... Rg1 {[%clk 0:00:06.7]} 70. Ra7+ {[%clk 0:00:48.3]}
70... Kf8 {[%clk 0:00:07.2]} 71. Kf6 {[%clk 0:00:47.2]} 71... Ke8 {[%clk
0:00:01.8]} 72. e5 {[%clk 0:00:46]} 1-0

[Event "*** Titled Tuesday Blitz"]
[Site "Chess.com"]
[Date "2020.04.28"]
[Round "2"]
[White "Sanan_Sjugirov"]
[Black "ENEASZ"]
[Result "1-0"]
[WhiteElo "2859"]
[BlackElo "2554"]
[TimeControl "180+1"]
[EndTime "10:18:57 PDT"]
[Termination "Sanan_Sjugirov won by resignation"]

1. e4 {[%clk 0:03:00.9]} 1... d6 {[%clk 0:03:00]} 2. d4 {[%clk 0:03:00.5]} 2...
Nf6 {[%clk 0:02:59.8]} 3. Bd3 {[%clk 0:03:00]} 3... e5 {[%clk 0:02:59.7]} 4. c3
{[%clk 0:02:54.7]} 4... Nc6 {[%clk 0:02:56]} 5. Nf3 {[%clk 0:02:51.1]} 5... g6
{[%clk 0:02:55.2]} 6. O-O {[%clk 0:02:48.5]} 6... Bg7 {[%clk 0:02:55.2]} 7. h3
{[%clk 0:02:45.7]} 7... O-O {[%clk 0:02:55]} 8. Re1 {[%clk 0:02:43.7]} 8... Re8
{[%clk 0:02:55]} 9. Bc2 {[%clk 0:02:41.7]} 9... h6 {[%clk 0:02:23.8]} 10. Nbd2
{[%clk 0:02:29.9]} 10... Nh5 {[%clk 0:02:06]} 11. Nf1 {[%clk 0:02:24.7]} 11...
Qf6 {[%clk 0:02:05.9]} 12. Ne3 {[%clk 0:02:21]} 12... Nf4 {[%clk 0:02:04.8]} 13.
Nd5 {[%clk 0:02:18.9]} 13... Nxd5 {[%clk 0:02:04.8]} 14. exd5 {[%clk 0:02:19.8]}
14... Nb8 {[%clk 0:02:02.9]} 15. dxe5 {[%clk 0:02:01.8]} 15... dxe5 {[%clk
0:02:03.8]} 16. Nd2 {[%clk 0:01:51.3]} 16... Bf5 {[%clk 0:02:00.3]} 17. Ne4
{[%clk 0:01:28.9]} 17... Qd8 {[%clk 0:01:59.9]} 18. c4 {[%clk 0:01:18.4]} 18...
Nd7 {[%clk 0:01:46.8]} 19. Nc3 {[%clk 0:01:06.1]} 19... Bxc2 {[%clk 0:01:43.8]}
20. Qxc2 {[%clk 0:01:07]} 20... a6 {[%clk 0:01:27.7]} 21. Be3 {[%clk 0:01:05.8]}
21... f5 {[%clk 0:01:24.9]} 22. Rad1 {[%clk 0:01:04.1]} 22... Kh7 {[%clk
0:01:23.9]} 23. f3 {[%clk 0:01:02]} 23... Nf6 {[%clk 0:01:21.2]} 24. c5 {[%clk
0:00:59.8]} 24... Qe7 {[%clk 0:01:03.5]} 25. Qb3 {[%clk 0:00:46.8]} 25... Rab8
{[%clk 0:01:02.5]} 26. Bf2 {[%clk 0:00:35.4]} 26... e4 {[%clk 0:01:00.7]} 27.
Bd4 {[%clk 0:00:22.9]} 27... Qf7 {[%clk 0:00:39.6]} 28. Bxf6 {[%clk 0:00:19.1]}
28... Qxf6 {[%clk 0:00:40.5]} 29. fxe4 {[%clk 0:00:19.2]} 29... f4 {[%clk
0:00:40.9]} 30. Rf1 {[%clk 0:00:15.6]} 30... Qg5 {[%clk 0:00:41.2]} 31. d6
{[%clk 0:00:13.1]} 31... Qxc5+ {[%clk 0:00:39.3]} 32. Kh1 {[%clk 0:00:12.4]}
32... cxd6 {[%clk 0:00:40]} 33. Rxf4 {[%clk 0:00:10.8]} 33... Qg5 {[%clk
0:00:28.9]} 34. Rdf1 {[%clk 0:00:10.6]} 34... Re7 {[%clk 0:00:17.3]} 35. Nd5
{[%clk 0:00:10.3]} 35... Rd7 {[%clk 0:00:17.7]} 36. Rg4 {[%clk 0:00:09.1]} 36...
Qe5 {[%clk 0:00:17.1]} 37. Rgf4 {[%clk 0:00:07.5]} 37... Re8 {[%clk 0:00:17.1]}
38. Qa4 {[%clk 0:00:06.5]} 38... b5 {[%clk 0:00:15.3]} 39. Qxa6 {[%clk
0:00:06.6]} 39... b4 {[%clk 0:00:14.8]} 40. Qb5 {[%clk 0:00:06.4]} 40... Red8
{[%clk 0:00:14.4]} 41. Qxb4 {[%clk 0:00:06.3]} 41... h5 {[%clk 0:00:14.1]} 42.
a4 {[%clk 0:00:05.8]} 42... Ra7 {[%clk 0:00:13.5]} 43. b3 {[%clk 0:00:05.7]}
43... Raa8 {[%clk 0:00:13.3]} 44. Qc4 {[%clk 0:00:05.5]} 44... Rac8 {[%clk
0:00:13]} 45. Qd3 {[%clk 0:00:05.5]} 45... Rd7 {[%clk 0:00:13.5]} 46. Qf3 {[%clk
0:00:05.1]} 46... Rcd8 {[%clk 0:00:13.3]} 47. a5 {[%clk 0:00:05.2]} 47... Ra8
{[%clk 0:00:13.3]} 48. b4 {[%clk 0:00:05.7]} 48... Rb8 {[%clk 0:00:13.6]} 49.
Qd3 {[%clk 0:00:05.6]} 49... Re8 {[%clk 0:00:12]} 50. a6 {[%clk 0:00:05.7]}
50... Qg5 {[%clk 0:00:12.2]} 51. b5 {[%clk 0:00:05.7]} 51... Be5 {[%clk
0:00:12.4]} 52. R4f3 {[%clk 0:00:05.7]} 52... Kh6 {[%clk 0:00:11.2]} 53. b6
{[%clk 0:00:05.8]} 53... Rc8 {[%clk 0:00:09.9]} 54. b7 {[%clk 0:00:06]} 54...
Rc1 {[%clk 0:00:10.1]} 55. b8=Q {[%clk 0:00:05.8]} 55... Rxf1+ {[%clk
0:00:07.8]} 56. Rxf1 {[%clk 0:00:06.3]} 56... Qg3 {[%clk 0:00:06.9]} 57. Qxg3
{[%clk 0:00:06.4]} 57... Bxg3 {[%clk 0:00:07.1]} 58. Qf8+ {[%clk 0:00:07]} 1-0